bitfinex/quotes_ETHUSD_20240730
["timestamp","ask_amount","ask_price","bid_price","bid_amount"]
[1722310977544,0.13862206,3328.2,3327.6,0.47036]
[1722310978052,0.13862206,3328.2,3328.1,35.0]
[1722310978349,2.40366,3328.3,3328.1,35.0]
[1722310978552,2.40366,3328.3,3327.6,0.47036]
[1722310978749,0.13861769,3328.2,3327.7,0.517396]
[1722310978958,0.13861769,3328.2,3328.1,35.0]
[1722310979324,2.40366,3328.3,3328.1,35.0]
[1722310979532,2.40366,3328.3,3327.7,2.921446]
[1722310979739,2.40351,3328.5,3327.9,2.4466]
[1722310979740,0.13861769,3328.2,3327.9,2.4466]
[1722310979942,2.40351,3328.5,3328.1,35.0]
[1722310980415,2.40369,3328.3,3328.1,35.0]
[1722310980638,2.40355,3328.4,3328.1,36.34314058]
[1722310982447,2.4037,3328.2,3328.1,36.34314058]
[1722310984060,4.8074,3328.2,3328.1,35.0]
[1722310984279,2.4037,3328.2,3328.1,35.0]
[1722310985575,3.97489449,3328.7,3328.1,35.0]
[1722310985576,2.40363,3328.3,3328.1,35.0]
[1722310986279,2.40348,3328.5,3328.1,35.0]
[1722310986683,2.40341,3328.6,3328.1,36.85508098]
[1722310986932,0.1384428,3328.4,3328.3,2.4221]
[1722310987114,9.82332,3328.8,3328.3,2.4221]
[1722310987417,9.82332,3328.8,3328.4,35.0]
[1722310987951,2.40335,3328.7,3328.4,35.0]
[1722310989160,7.42,3328.8,3328.5,0.06008555]
[1722310989360,2.40303,3329.2,3328.6,2.4455]
[1722310989683,2.40303,3329.2,3328.7,0.55097841]
[1722310989981,4.80622,3329.1,3329.0,35.0]
[1722310994859,10.81313,3329.1,3329.0,35.0]
[1722310995741,12.69860345,3329.1,3329.0,35.0]
[1722310997068,12.69966863,3329.1,3329.0,35.0]
[1722310997283,11.59266863,3329.1,3329.0,35.0]
[1722310997464,12.75193549,3329.1,3329.0,35.0]
[1722310998897,10.86539686,3329.1,3329.0,35.0]
[1722310999184,12.75254197,3329.1,3329.0,35.0]
[1722310999388,12.75258988,3329.1,3329.0,35.0]
[1722310999622,10.86539686,3329.1,3329.0,35.0]
[1722311000122,13.26850686,3329.1,3329.0,35.0]
[1722311001106,15.47082745,3329.1,3329.0,35.0]
[1722311001928,15.60935331,3329.1,3329.0,35.0]
[1722311002836,4.80754,3328.1,3328.0,2.4726]
[1722311003032,2.40377,3328.1,3327.6,2.3403]
[1722311003330,2.40406,3327.7,3327.6,2.3403]
[1722311003633,2.40444,3327.2,3327.0,2.3796]
[1722311003833,2.40424,3327.5,3327.1,35.0]
[1722311004033,2.4044,3327.3,3327.1,36.90021215]
[1722311004392,2.40424,3327.5,3327.1,36.90021215]
[1722311004701,2.40428,3327.4,3327.1,36.90021215]
[1722311005238,0.13787426,3327.3,3327.1,36.90021215]
[1722311009163,2.54222426,3327.3,3327.1,36.90021215]
[1722311009315,2.40442,3327.2,3327.1,35.0]
[1722311009822,2.54229426,3327.2,3327.1,35.0]
[1722311010828,0.13787426,3327.2,3327.1,35.0]
[1722311011317,2.40414,3327.6,3327.1,35.0]
[1722311011521,0.13758986,3327.2,3327.1,38.04901288]
[1722311011737,2.4042,3327.5,3327.1,38.04901288]
[1722311012114,0.13758986,3327.4,3327.1,38.04901288]
[1722311013545,2.54186986,3327.4,3327.1,38.04901288]
[1722311013746,2.40437,3327.3,3327.1,38.04901288]
[1722311014050,2.40442,3327.2,3327.1,35.0]
[1722311014210,4.80884,3327.2,3327.1,35.0]
[1722311014414,4.94642553,3327.2,3327.1,35.0]
[1722311014635,5.44106808,3327.2,3327.1,35.0]
[1722311014861,7.01565205,3327.2,3327.1,35.0]
[1722311015060,5.44106808,3327.2,3327.1,35.0]
[1722311015240,7.0151054,3327.2,3327.1,35.0]
[1722311015736,5.44106808,3327.2,3327.1,35.0]
[1722311015935,2.40472,3326.8,3326.4,2.2605]
[1722311016239,2.40464,3326.9,3326.5,0.22605]
[1722311016446,0.13744113,3326.7,3326.5,35.22605]
[1722311016658,2.40464,3326.9,3326.5,35.22605]
[1722311017171,0.13739299,3326.8,3326.5,35.22605]
[1722311017573,0.13739299,3326.8,3326.5,0.22605]
[1722311017866,3.97794623,3327.3,3326.5,0.22605]
[1722311017867,2.40457,3327.0,3326.5,0.22605]
[1722311018065,2.40457,3327.0,3326.7,35.0]
[1722311018570,2.40457,3327.0,3326.4,2.2605]
[1722311019071,2.40457,3327.0,3326.9,35.0]
[1722311019566,2.40451,3327.1,3326.9,35.0]
[1722311019771,2.40451,3327.1,3326.4,4.6655]
[1722311019962,2.40451,3327.1,3326.4,5.13205]
[1722311020456,2.40457,3327.0,3326.4,2.72705]
[1722311020663,2.40464,3326.9,3326.4,2.72705]
[1722311020871,2.40464,3326.9,3326.4,2.2605]
[1722311021880,2.40464,3326.9,3326.0,2.657]
[1722311021881,2.40486,3326.6,3326.3,2.3887]
[1722311022070,2.40464,3326.9,3326.3,2.3887]
[1722311022071,2.40476,3326.8,3326.3,2.3887]
[1722311022457,2.40479,3326.7,3326.3,2.3887]
[1722311023069,2.40498,3326.5,3326.3,2.3887]
[1722311023251,2.40457,3327.0,3325.8,2.3001]
[1722311023453,2.40507,3326.3,3325.8,2.82774621]
[1722311024617,2.40524,3326.1,3325.8,2.3001]
[1722311026058,2.40529,3326.0,3325.8,2.3001]
[1722311029196,2.40515,3326.2,3325.8,2.3001]
[1722311031307,2.40501,3326.4,3325.8,2.3001]
[1722311031511,2.40501,3326.4,3325.9,0.06012806]
[1722311031696,2.40487,3326.6,3326.0,2.4991]
[1722311031897,0.13651322,3326.5,3326.0,2.4991]
[1722311032097,2.54144322,3326.5,3326.0,2.4991]
[1722311034480,0.13651322,3326.5,3326.0,2.4991]
[1722311034676,0.13651322,3326.5,3326.0,4.96450499]
[1722311034878,2.40478,3326.7,3326.0,5.46095549]
[1722311035091,0.13651322,3326.4,3326.0,5.46095549]
[1722311035292,2.40478,3326.7,3326.0,5.46095549]
[1722311035581,2.40485,3326.6,3326.0,5.46095549]
[1722311035812,2.40493,3326.5,3326.0,2.9955505]
[1722311036019,2.40493,3326.5,3326.0,2.4991]
[1722311036182,0.13651322,3326.4,3326.0,2.4991]
[1722311036524,0.13651322,3326.4,3326.1,2.40521]
[1722311036883,7.42,3327.2,3326.1,2.40521]
[1722311037126,2.40457,3327.0,3326.1,2.40521]
[1722311037328,2.40457,3327.0,3326.4,1.108]
[1722311037503,0.3907091,3326.9,3326.4,1.108]
[1722311037916,2.40471,3326.8,3326.4,1.108]
[1722311038315,2.54146833,3326.7,3326.4,1.108]
[1722311038522,0.13668833,3326.7,3326.4,1.108]
[1722311038834,2.40476,3326.8,3326.4,1.108]
[1722311039022,0.25410832,3326.9,3326.4,1.108]
[1722311039023,0.13671459,3326.6,3326.4,1.108]
[1722311039332,2.40479,3326.7,3326.2,1.108]
[1722311039537,0.13671459,3326.5,3326.2,1.108]
[1722311039931,0.13671459,3326.4,3326.2,1.108]
[1722311040314,2.40472,3326.8,3326.2,1.108]
[1722311040813,0.13671459,3326.7,3326.2,1.108]
[1722311042923,0.13671459,3326.7,3326.4,1.108]
[1722311043123,2.40472,3326.8,3326.4,1.108]
[1722311043331,7.42,3327.1,3326.6,1.108]
[1722311043520,0.13671459,3326.7,3326.5,2.2623]
[1722311043721,9.8245,3327.1,3326.5,2.2623]
[1722311044342,2.54136339,3327.0,3326.5,2.2623]
[1722311044541,2.54136339,3327.0,3326.6,1.108]
[1722311044746,0.13679339,3327.0,3326.8,1.108]
[1722311045049,7.42,3327.4,3326.9,2.4271136]
[1722311045221,7.42,3327.8,3327.2,1.108]
[1722311045426,3.386467,3327.7,3327.2,1.108]
[1722311045735,2.40385,3328.0,3327.5,3.5057]
[1722311046926,0.13734045,3327.9,3327.5,3.5057]
[1722311047746,0.13734045,3327.9,3327.6,35.0]
[1722311051227,7.42,3328.1,3327.6,35.0]
[1722311051427,0.13747606,3327.8,3327.6,35.0]
[1722311051631,7.42,3328.1,3327.6,35.0]
[1722311051831,0.13747606,3327.7,3327.6,35.0]
[1722311052155,2.4037,3328.2,3327.6,35.0]
[1722311052958,2.54125606,3328.1,3327.6,35.0]
[1722311053123,2.40392,3327.9,3327.6,35.0]
[1722311053836,0.13747606,3327.8,3327.6,35.0]
[1722311057533,2.54148606,3327.8,3327.6,35.0]
[1722311058989,0.13747606,3327.8,3327.6,35.0]
[1722311059573,0.1379311,3327.7,3327.6,35.0]
[1722311059803,2.40389,3328.0,3327.6,35.0]
[1722311059955,0.1379311,3327.7,3327.6,35.0]
[1722311060499,2.40364,3328.3,3327.6,35.0]
[1722311060669,3.77521153,3328.3,3327.6,35.0]
[1722311060869,0.13794424,3328.2,3327.6,35.0]
[1722311061165,2.40378,3328.1,3327.6,35.0]
[1722311061701,3.77521153,3328.3,3327.6,35.0]
[1722311061702,2.40404,3327.8,3327.6,35.0]
[1722311062079,0.1379486,3327.7,3327.6,35.0]
[1722311062271,2.40389,3328.0,3327.6,35.0]
[1722311062601,0.1379486,3327.9,3327.6,35.0]
[1722311063104,2.40399,3327.8,3327.6,35.0]
[1722311063287,2.5419386,3327.8,3327.6,35.0]
[1722311063456,0.1379486,3327.8,3327.6,35.0]
[1722311063659,2.40386,3328.0,3327.6,35.0]
[1722311063970,2.40391,3327.9,3327.6,35.0]
[1722311064175,0.1379486,3327.8,3327.6,35.0]
[1722311064379,12.14331,3328.5,3327.6,35.0]
[1722311064380,2.40398,3327.9,3327.6,35.0]
[1722311064555,0.1379486,3327.7,3327.6,35.0]
[1722311064757,2.40398,3327.9,3327.6,35.0]
[1722311065007,0.1379486,3327.8,3327.6,35.0]
[1722311067490,2.5419386,3327.8,3327.6,35.0]
[1722311067688,2.40406,3327.7,3327.6,35.0]
[1722311068092,5.06232086,3327.7,3327.6,35.0]
[1722311068483,5.2002126,3327.7,3327.6,35.0]
[1722311068672,5.2002126,3327.7,3326.5,5.40491]
[1722311068673,2.40446,3327.2,3326.5,2.2766]
[1722311068877,2.40455,3327.1,3326.5,2.2766]
[1722311069063,2.4046,3327.0,3326.5,2.2766]
[1722311069404,2.4046,3327.0,3326.9,35.0]
[1722311070003,4.8092,3327.0,3326.9,35.0]
[1722311071708,2.4046,3327.0,3326.9,35.0]
[1722311072593,2.40447,3327.2,3326.9,35.0]
[1722311073100,2.40452,3327.1,3326.9,35.0]
[1722311073477,2.40456,3327.0,3326.9,35.0]
[1722311076119,2.40442,3327.2,3326.9,36.108]
[1722311076316,2.40442,3327.2,3326.9,39.15701288]
[1722311076922,2.40428,3327.4,3326.9,39.15701288]
[1722311077116,2.40435,3327.3,3326.9,4.15701288]
[1722311077323,2.54156795,3327.3,3327.0,2.4382]
[1722311077687,0.13721795,3327.3,3327.1,36.108]
[1722311077921,0.13721795,3327.3,3327.2,0.06010376]
[1722311078117,2.40399,3327.8,3327.2,2.46451376]
[1722311078460,0.13727048,3327.7,3327.4,3.5462]
[1722311078732,2.40399,3327.8,3327.5,35.0]
[1722311078887,0.13727048,3327.6,3327.5,35.0]
[1722311079088,2.40399,3327.8,3327.5,35.0]
[1722311079287,0.13727048,3327.6,3327.5,35.0]
[1722311079491,2.40399,3327.8,3327.5,35.0]
[1722311079729,0.13727048,3327.6,3327.5,35.0]
[1722311079922,2.40399,3327.8,3327.5,35.9850765]
[1722311080126,0.13727048,3327.6,3327.5,35.9850765]
[1722311080630,2.40399,3327.8,3327.5,35.9850765]
[1722311080827,2.40413,3327.6,3327.5,35.0]
[1722311081326,2.54168485,3327.6,3327.5,35.0]
[1722311081813,4.94581485,3327.6,3327.5,35.0]
[1722311082388,6.51998989,3327.6,3327.5,35.0]
[1722311083824,5.84502384,3327.6,3327.5,35.0]
[1722311089447,7.73600799,3327.6,3327.5,35.0]
[1722311090251,10.14013799,3327.6,3327.5,35.0]
[1722311090554,8.24915384,3327.6,3327.5,35.0]
[1722311090740,2.40485,3326.6,3326.5,2.4058]
[1722311091163,2.54221235,3326.6,3326.5,37.4058]
[1722311091655,2.54208548,3326.6,3326.5,37.4058]
[1722311091852,2.54208548,3326.6,3326.5,35.0]
[1722311094137,4.94693548,3326.6,3326.5,35.0]
[1722311095149,7.17607768,3326.6,3326.5,35.0]
[1722311095956,5.59930618,3326.6,3326.5,35.0]
[1722311096671,4.94693548,3326.6,3326.5,35.0]
[1722311097457,2.40503,3326.4,3325.9,2.4032]
[1722311097816,2.40503,3326.4,3326.3,35.0]
[1722311101025,2.40485,3326.6,3326.3,35.0]
[1722311101145,2.40473,3326.8,3326.4,2.3295]
[1722311101346,1.57470072,3326.9,3326.4,2.56245]
[1722311101347,2.40466,3326.9,3326.4,2.56245]
[1722311101738,2.40466,3326.9,3326.8,35.0]
[1722311103173,4.80935,3326.9,3326.8,35.0]
[1722311103674,6.38398475,3326.9,3326.8,35.0]
[1722311103875,7.02238323,3326.9,3326.8,35.0]
[1722311104046,5.44774848,3326.9,3326.8,35.0]
[1722311104734,7.02239817,3326.9,3326.8,35.0]
[1722311105368,5.44774848,3326.9,3326.8,35.0]
[1722311105564,7.02239817,3326.9,3326.8,35.0]
[1722311106131,5.44774848,3326.9,3326.8,35.0]
[1722311106748,7.02234157,3326.9,3326.8,35.0]
[1722311106935,7.15906056,3326.9,3326.8,35.0]
[1722311107682,7.15910898,3326.9,3326.8,35.0]
[1722311107840,5.58446747,3326.9,3326.8,35.0]
[1722311108863,7.98915747,3326.9,3326.8,35.0]
[1722311109638,5.58446747,3326.9,3326.8,35.0]
[1722311109836,0.77511747,3326.9,3326.8,35.0]
[1722311110042,3.97857572,3327.9,3326.8,35.0]
[1722311110238,2.2834,3328.1,3327.1,5.1238]
[1722311110239,3.97844572,3328.1,3327.1,5.1238]
[1722311110444,2.40379,3328.1,3327.2,0.06010123]
[1722311110664,2.40384,3328.0,3327.7,35.0]
[1722311112140,1.57465572,3328.3,3327.7,35.0]
[1722311112141,3.97829572,3328.3,3327.7,35.0]
[1722311112341,1.57465572,3328.4,3327.7,35.0]
[1722311112742,2.4037,3328.2,3327.7,35.0]
[1722311112998,2.40379,3328.1,3327.7,35.0]
[1722311113153,2.40385,3328.0,3327.7,35.0]
[1722311115484,2.40346,3328.6,3327.7,35.0]
[1722311115714,2.40399,3327.8,3327.7,35.0]
[1722311116000,4.80798,3327.8,3327.7,35.0]
[1722311116356,4.94566176,3327.8,3327.7,35.0]
[1722311117278,5.59755488,3327.8,3327.7,35.0]
[1722311118407,7.17082431,3327.8,3327.7,35.0]
[1722311118555,5.59755488,3327.8,3327.7,35.0]
[1722311118759,7.17082431,3327.8,3327.7,35.0]
[1722311119377,3.19356488,3327.8,3327.7,35.0]
[1722311119555,5.59755488,3327.8,3327.7,35.0]
[1722311119977,2.54167176,3327.8,3327.7,35.0]
[1722311122927,2.54167176,3327.8,3327.2,2.3731]
[1722311123105,2.40429,3327.4,3326.8,4.70519]
[1722311123422,9.82406,3327.7,3327.3,35.0]
[1722311124224,2.4042,3327.5,3327.3,35.0]
[1722311124436,2.40427,3327.4,3327.3,35.0]
[1722311125139,4.80854,3327.4,3327.3,35.0]
[1722311128226,2.40427,3327.4,3327.3,35.0]
[1722311129480,2.40446,3327.2,3326.8,2.3005]
[1722311129679,2.40427,3327.4,3326.8,2.3005]
[1722311129880,2.40436,3327.3,3326.8,2.3005]
[1722311130195,2.40449,3327.1,3326.9,35.0]
[1722311131277,2.40456,3327.0,3326.9,35.0]
[1722311134539,4.80912,3327.0,3326.9,35.0]
[1722311134881,2.40456,3327.0,3326.9,35.0]
[1722311136863,2.5415635,3327.0,3326.9,35.0]
[1722311138727,4.9461235,3327.0,3326.9,35.0]
[1722311138871,3.03616185,3327.0,3326.9,35.0]
[1722311139196,0.1370035,3327.0,3326.9,35.0]
[1722311140004,2.40442,3327.2,3326.9,35.0]
[1722311140397,0.13692912,3327.1,3326.9,35.0]
[1722311142240,0.13692912,3327.1,3327.0,2.291]
[1722311142412,0.13692912,3327.1,3327.0,7.41367598]
[1722311142626,7.42,3327.7,3327.1,2.292]
[1722311142829,7.42,3327.7,3327.3,2.40429]
[1722311143344,0.13705166,3327.6,3327.3,2.40429]
[1722311143682,0.13705166,3327.6,3327.4,0.06010169]
[1722311143883,0.13705166,3327.6,3327.3,2.46439169]
[1722311144134,0.13705166,3327.6,3327.4,0.24643917]
[1722311144295,0.13705166,3327.6,3327.1,4.69645]
[1722311144783,0.13705166,3327.6,3327.2,2.40441]
[1722311145133,0.13705166,3327.6,3327.1,2.292]
[1722311145134,0.13705166,3327.6,3327.5,35.0]
[1722311145488,2.54118166,3327.6,3327.5,35.0]
[1722311145821,0.13705166,3327.6,3327.5,35.0]
[1722311148121,0.13705166,3327.6,3327.5,38.04901288]
[1722311148327,2.40386,3328.0,3327.5,38.04901288]
[1722311148626,2.40378,3328.1,3327.5,38.04901288]
[1722311148923,2.54141801,3328.0,3327.6,3.04901288]
[1722311149790,2.54141801,3328.0,3327.7,2.457]
[1722311150211,0.13756801,3328.0,3327.7,4.86101]
[1722311150423,7.42,3328.2,3327.7,2.457]
[1722311150929,0.13769053,3328.1,3327.7,2.457]
[1722311151133,0.13769053,3328.1,3327.8,0.79101229]
[1722311151695,0.13769053,3328.1,3327.9,35.0]
[1722311152819,2.54146053,3328.1,3327.9,35.0]
[1722311157546,2.40384,3328.0,3327.9,35.0]
[1722311157912,2.54163989,3328.0,3327.9,35.0]
[1722311158513,4.94547989,3328.0,3327.9,35.0]
[1722311158812,5.59752912,3328.0,3327.9,35.0]
[1722311161147,7.48794434,3328.0,3327.9,35.0]
[1722311161450,7.48800595,3328.0,3327.9,35.0]
[1722311161653,4.94547989,3328.0,3327.9,35.0]
[1722311161951,0.13779989,3328.0,3327.9,35.0]
[1722311162339,2.54163989,3328.0,3327.9,35.0]
[1722311163218,4.94547989,3328.0,3327.9,35.0]
[1722311166464,9.23962108,3328.0,3327.9,35.0]
[1722311166669,10.16358319,3328.0,3327.9,35.0]
[1722311167163,10.16364817,3328.0,3327.9,35.0]
[1722311167734,8.273282,3328.0,3327.9,35.0]
[1722311169739,10.16368422,3328.0,3327.9,35.0]
[1722311170573,10.16363441,3328.0,3327.9,35.0]
[1722311171134,5.869442,3328.0,3327.9,35.0]
[1722311171364,6.8358323,3328.0,3327.9,35.0]
[1722311171575,4.94547989,3328.0,3327.9,35.0]
[1722311172251,6.8358323,3328.0,3327.9,35.0]
[1722311173074,4.94547989,3328.0,3327.9,35.0]
[1722311174462,7.34931989,3328.0,3327.9,35.0]
[1722311174771,5.68041188,3328.0,3327.9,35.0]
[1722311175864,7.57115734,3328.0,3327.9,35.0]
[1722311176078,6.83622535,3328.0,3327.9,35.0]
[1722311176382,4.94547989,3328.0,3327.9,35.0]
[1722311176702,4.11712921,3328.0,3327.9,35.0]
[1722311176988,2.54163989,3328.0,3327.9,35.0]
[1722311177281,4.1171011,3328.0,3327.9,35.0]
[1722311177483,2.54163989,3328.0,3327.9,35.0]
[1722311177643,4.11709369,3328.0,3327.9,35.0]
[1722311178367,6.52093369,3328.0,3327.9,35.0]
[1722311178567,5.59757326,3328.0,3327.9,35.0]
[1722311179571,5.59757326,3328.0,3327.5,2.4932]
[1722311179572,2.40413,3327.6,3327.5,2.4932]
[1722311180069,4.94596364,3327.6,3327.5,35.0]
[1722311180271,6.52194724,3327.6,3327.5,35.0]
[1722311180475,4.94596364,3327.6,3327.5,35.0]
[1722311184264,4.11812371,3327.6,3327.5,38.04901288]
[1722311184964,2.54183364,3327.6,3327.5,38.04901288]
[1722311185169,2.54183364,3327.6,3327.5,35.0]
[1722311185369,4.11812371,3327.6,3327.5,35.0]
[1722311185585,4.11852323,3327.6,3327.5,35.0]
[1722311186182,0.13770364,3327.6,3327.5,35.0]
[1722311186967,1.71439323,3327.6,3327.5,35.0]
[1722311188460,1.71439323,3327.6,3327.5,38.04901288]
[1722311188461,0.13770364,3327.6,3327.5,38.04901288]
[1722311188779,1.57668959,3327.8,3327.5,38.04901288]
[1722311188980,0.13761616,3327.6,3327.5,38.04901288]
[1722311189155,1.57668959,3327.8,3327.5,38.04901288]
[1722311189354,0.13761616,3327.6,3327.5,38.04901288]
[1722311189562,1.57668959,3327.8,3327.5,38.04901288]
[1722311189896,0.13761616,3327.6,3327.5,38.04901288]
[1722311190097,1.57668959,3327.7,3327.5,35.0]
[1722311190270,4.80826,3327.6,3327.5,35.0]
[1722311190461,4.94591553,3327.6,3327.5,35.0]
[1722311193504,4.94591553,3327.6,3327.0,2.4506]
[1722311193505,2.40422,3327.5,3327.0,2.4506]
[1722311193815,1.7147271,3327.6,3327.1,0.24506]
[1722311194007,2.4041,3327.7,3327.5,35.0]
[1722311194167,2.40386,3328.0,3327.6,2.3709]
[1722311194168,3.9809981,3327.8,3327.6,2.3709]
[1722311194502,1.5770081,3327.7,3327.6,2.3709]
[1722311194701,3.9809981,3327.8,3327.6,2.3709]
[1722311195005,3.9809981,3327.8,3327.7,35.0]
[1722311195391,2.40399,3327.8,3327.7,35.0]
[1722311195585,3.98099103,3327.8,3327.7,35.0]
[1722311195785,3.98098917,3327.8,3327.7,35.0]
[1722311196386,1.57699917,3327.8,3327.7,35.0]
[1722311196615,1.57699917,3327.9,3327.7,35.0]
[1722311196926,1.7146848,3327.8,3327.7,35.0]
[1722311197101,0.13764241,3327.8,3327.7,35.0]
[1722311197301,1.71492346,3327.8,3327.7,35.0]
[1722311198789,0.13764241,3327.8,3327.7,35.0]
[1722311199414,1.71492346,3327.8,3327.7,35.0]
[1722311199890,0.13764241,3327.8,3327.7,35.0]
[1722311200797,1.71527251,3327.8,3327.7,35.0]
[1722311201714,0.13764241,3327.8,3327.7,35.0]
[1722311204111,1.71557246,3327.8,3327.7,35.0]
[1722311204505,0.13764241,3327.8,3327.7,35.0]
[1722311204896,1.71556676,3327.8,3327.7,35.0]
[1722311206639,1.71550831,3327.8,3327.7,35.0]
[1722311206842,1.71549747,3327.8,3327.7,37.62929132]
[1722311207145,0.13764241,3327.8,3327.7,39.94829132]
[1722311207444,1.57785506,3328.4,3327.7,42.35235132]
[1722311207626,3.98148506,3328.3,3327.7,7.35235132]
[1722311207821,1.57785506,3328.2,3327.7,4.72306]
[1722311208034,1.57785506,3328.2,3328.1,35.0]
[1722311208234,3.98148506,3328.3,3328.1,35.0]
[1722311208537,2.40385,3328.0,3327.7,2.319]
[1722311208735,2.40385,3328.0,3327.3,2.4718]
[1722311208736,2.40396,3327.9,3327.3,2.4718]
[1722311208904,2.40399,3327.8,3327.3,2.4718]
[1722311209108,3.9810575,3327.8,3327.3,2.4718]
[1722311209403,2.40414,3327.6,3327.3,2.4718]
[1722311209943,2.40414,3327.6,3327.5,35.0]
[1722311211825,2.54201861,3327.6,3327.5,35.0]
[1722311213211,4.11931876,3327.6,3327.5,35.0]
[1722311216405,2.54201861,3327.6,3327.5,35.0]
[1722311216615,4.11948198,3327.6,3327.5,35.0]
[1722311217327,0.13787861,3327.6,3327.5,35.0]
[1722311217834,3.98149337,3327.8,3327.5,35.0]
[1722311218028,2.40408,3327.7,3327.6,1.107]
[1722311218817,3.98145337,3327.8,3327.6,1.107]
[1722311219128,3.98152337,3327.7,3327.6,1.107]
[1722311219641,2.40406,3327.7,3327.6,1.107]
[1722311219845,3.98151842,3327.7,3327.5,35.0]
[1722311220139,2.40413,3327.6,3327.5,35.0]
[1722311222126,1.57750071,3327.7,3327.5,35.0]
[1722311222324,3.98149071,3327.8,3327.6,1.107]
[1722311223108,2.40406,3327.7,3327.6,1.107]
[1722311223337,3.98156071,3327.7,3327.6,1.107]
[1722311223537,6.38562071,3327.7,3327.6,1.107]
[1722311223733,2.40413,3327.6,3327.5,35.0]
[1722311224245,3.98163071,3327.6,3327.5,35.0]
[1722311224453,2.40413,3327.6,3327.5,35.0]
[1722311224649,3.98163071,3327.6,3327.5,35.0]
[1722311225166,2.40413,3327.6,3327.5,35.0]
[1722311225323,3.98165789,3327.6,3327.5,35.0]
[1722311225718,3.98170848,3327.6,3327.5,35.0]
[1722311226741,6.38583848,3327.6,3327.5,35.0]
[1722311226948,4.94596364,3327.6,3327.5,35.0]
[1722311231724,7.99827783,3327.6,3327.5,35.0]
[1722311231936,7.99864809,3327.6,3327.5,35.0]
[1722311232144,7.99866646,3327.6,3327.5,35.0]
[1722311233159,8.50894799,3327.6,3327.5,35.0]
[1722311233332,9.61594799,3327.6,3327.5,35.0]
[1722311233528,14.21881644,3327.6,3327.5,35.0]
[1722311233729,4.79695799,3327.6,3326.4,1.107]
[1722311233934,1.57807386,3326.8,3326.4,1.107]
[1722311234141,2.40485,3326.6,3326.4,1.107]
[1722311234329,2.40485,3326.6,3326.5,35.0]
[1722311234754,2.54233487,3326.6,3326.5,35.0]
[1722311235051,0.13748487,3326.6,3326.5,35.0]
[1722311235254,0.13748487,3326.6,3326.5,38.04901288]
[1722311235451,2.40475,3326.8,3326.5,38.04901288]
[1722311235654,3.98267386,3327.0,3326.6,1.107]
[1722311235845,3.98267386,3327.0,3326.5,38.04901288]
[1722311235846,1.57807386,3327.2,3326.9,1.107]
[1722311236058,2.40427,3327.4,3327.1,3.5873]
[1722311236273,2.40427,3327.4,3327.3,36.107]
[1722311236649,3.98225386,3327.6,3327.3,36.107]
[1722311236959,2.40414,3327.6,3327.3,36.107]
[1722311238050,2.40414,3327.6,3327.3,35.0]
[1722311238386,2.40427,3327.4,3327.3,35.0]
[1722311239471,1.57689056,3327.5,3327.3,38.04901288]
[1722311239777,1.57689056,3327.8,3327.4,2.4852]
[1722311239985,3.98088056,3327.9,3327.4,2.4852]
[1722311240199,2.40399,3327.8,3327.5,3.04901288]
[1722311240900,8.99669822,3328.0,3327.5,5.45321288]
[1722311241119,8.99669822,3328.0,3327.6,0.0600972]
[1722311241462,7.42,3328.0,3327.7,35.0]
[1722311241868,0.13759427,3327.9,3327.7,35.0]
[1722311242607,0.13759427,3327.9,3327.8,2.275]
[1722311242800,0.13759427,3327.9,3327.8,5.38410787]
[1722311243001,3.98011521,3328.4,3327.8,2.33509499]
[1722311243217,0.13777364,3327.9,3327.8,2.33509499]
[1722311243386,3.98011521,3328.4,3327.8,2.33509499]
[1722311243587,0.13777364,3327.9,3327.8,2.33509499]
[1722311243995,2.40364,3328.3,3327.8,37.275]
[1722311244159,0.13777364,3327.9,3327.8,2.275]
[1722311244456,2.40372,3328.2,3327.8,2.275]
[1722311244600,0.13802735,3327.9,3327.8,2.275]
[1722311244808,2.40372,3328.2,3327.8,2.5025]
[1722311245021,0.13802735,3327.9,3327.8,2.5025]
[1722311245244,2.40372,3328.2,3327.8,2.5025]
[1722311245549,0.13802735,3327.9,3327.8,2.5025]
[1722311246060,2.40372,3328.2,3327.8,2.5025]
[1722311246203,0.13802735,3327.9,3327.8,37.5025]
[1722311246406,2.40372,3328.2,3327.8,37.5025]
[1722311246620,0.13802735,3327.9,3327.8,2.5025]
[1722311246856,2.40372,3328.2,3327.8,2.5025]
[1722311247025,0.13802735,3327.9,3327.8,2.5025]
[1722311247233,2.40372,3328.2,3327.8,2.275]
[1722311247563,0.13802735,3328.1,3327.9,35.0]
[1722311249316,2.40363,3328.3,3327.9,35.0]
[1722311249528,0.13802735,3328.0,3327.9,35.0]
[1722311249711,2.40382,3328.1,3327.9,35.0]
[1722311249914,0.13802735,3328.0,3327.9,35.0]
[1722311250740,2.40378,3328.1,3327.9,35.0]
[1722311250937,0.13802735,3328.0,3327.9,35.0]
[1722311252923,2.40363,3328.3,3327.9,35.0]
[1722311253118,0.13802735,3328.0,3327.9,35.0]
[1722311253319,2.40371,3328.2,3327.9,35.0]
[1722311253517,0.13802735,3328.0,3327.9,35.0]
[1722311253752,2.40371,3328.2,3327.9,35.0]
[1722311253955,0.13802735,3328.0,3327.9,35.0]
[1722311254124,2.40371,3328.2,3327.9,35.0]
[1722311254327,0.13802735,3328.0,3327.9,35.0]
[1722311254556,2.40371,3328.2,3327.9,35.0]
[1722311255050,0.13807981,3328.1,3327.9,35.0]